[Event "Titled Tuesday Blitz November 07 Late 2023"]
[White "Pasti, Aron"]
[Black "Makhnev, Denis"]
[WhiteFideId "785857"]
[BlackFideId "13707647"]
[WhiteElo "2510"]
[BlackElo "2956"]
[Result "0-1"]
[Round "3"]
[TimeControl "180+1"]
[Date "2023.11.07"]
[WhiteClock "0:00:10"]
[BlackClock "0:01:02"]
[Board "51"]

1. e4 {[%clk 0:03:00]}  e5 {[%clk 0:03:00]} 2. Nf3 {[%clk 0:03:00]}  Nc6 {[%clk 0:03:01]} 3. Bb5 {[%clk 0:03:01]}  a6 {[%clk 0:03:02]} 4. Ba4 {[%clk 0:03:01]}  Nf6 {[%clk 0:03:02]} 5. O-O {[%clk 0:03:02]}  Be7 {[%clk 0:03:03]} 6. Re1 {[%clk 0:03:02]}  b5 {[%clk 0:03:04]} 7. Bb3 {[%clk 0:03:02]}  O-O {[%clk 0:03:05]} 8. d4 {[%clk 0:02:59]}  Nxd4 {[%clk 0:02:59]} 9. Nxd4 {[%clk 0:02:53]}  exd4 {[%clk 0:03:00]} 10. e5 {[%clk 0:02:54]}  Ne8 {[%clk 0:03:00]} 11. c3 {[%clk 0:02:55]}  Bb7 {[%clk 0:02:46]} 12. cxd4 {[%clk 0:02:54]}  d6 {[%clk 0:02:46]} 13. Nc3 {[%clk 0:02:52]}  dxe5 {[%clk 0:02:46]} 14. dxe5 {[%clk 0:02:53]}  c5 {[%clk 0:02:44]} 15. Bd5 {[%clk 0:02:49]}  Bxd5 {[%clk 0:02:42]} 16. Nxd5 {[%clk 0:02:50]}  Nc7 {[%clk 0:02:42]} 17. Nxe7+ {[%clk 0:02:45]}  Qxe7 {[%clk 0:02:42]} 18. Qd6 {[%clk 0:02:46]}  Rfe8 {[%clk 0:02:34]} 19. Bf4 {[%clk 0:02:25]}  Ne6 {[%clk 0:02:31]} 20. Be3 {[%clk 0:02:22]}  Rad8 {[%clk 0:02:26]} 21. Qxe7 {[%clk 0:02:20]}  Rxe7 {[%clk 0:02:26]} 22. Rad1 {[%clk 0:02:20]}  Red7 {[%clk 0:02:26]} 23. Rxd7 {[%clk 0:02:20]}  Rxd7 {[%clk 0:02:27]} 24. Kf1 {[%clk 0:02:20]}  g5 {[%clk 0:02:20]} 25. Ke2 {[%clk 0:01:55]}  Rd5 {[%clk 0:02:19]} 26. Rd1 {[%clk 0:01:55]}  Rxe5 {[%clk 0:02:19]} 27. Rd6 {[%clk 0:01:55]}  a5 {[%clk 0:02:20]} 28. Rb6 {[%clk 0:01:43]}  a4 {[%clk 0:02:19]} 29. Kd3 {[%clk 0:01:38]}  c4+ {[%clk 0:02:19]} 30. Kc3 {[%clk 0:01:38]}  h5 {[%clk 0:01:59]} 31. Kb4 {[%clk 0:01:36]}  Nc7 {[%clk 0:02:00]} 32. Rb8+ {[%clk 0:00:57]}  Kh7 {[%clk 0:01:59]} 33. Ka5 {[%clk 0:00:45]}  a3 {[%clk 0:01:25]} 34. bxa3 {[%clk 0:00:41]}  c3 {[%clk 0:01:26]} 35. Rc8 {[%clk 0:00:39]}  Nd5 {[%clk 0:01:26]} 36. Bd4 {[%clk 0:00:25]}  Re2 {[%clk 0:01:26]} 37. Rc5 {[%clk 0:00:24]}  c2 {[%clk 0:01:20]} 38. Kxb5 {[%clk 0:00:23]}  Nf4 {[%clk 0:01:09]} 39. Be3 {[%clk 0:00:22]}  Nd3 {[%clk 0:01:04]} 40. Rc3 {[%clk 0:00:20]}  Nxf2 {[%clk 0:01:03]} 41. Bxg5 {[%clk 0:00:10]}  Ne4 {[%clk 0:01:02]} 0-1


[Site "https://www.chess.com"]

[Event "Titled Tuesday Blitz November 07 Late 2023"]
[White "Khismatullin, Denis"]
[Black "Reprintsev, Alexander"]
[WhiteFideId "4142578"]
[BlackFideId "14100541"]
[WhiteElo "2938"]
[BlackElo "2508"]
[Result "1-0"]
[Round "3"]
[TimeControl "180+1"]
[Date "2023.11.07"]
[WhiteClock "0:00:15"]
[BlackClock "0:00:10"]
[Board "52"]

1. e4 {[%clk 0:03:00]}  d5 {[%clk 0:02:59]} 2. exd5 {[%clk 0:03:00]}  Qxd5 {[%clk 0:03:00]} 3. Nc3 {[%clk 0:03:00]}  Qa5 {[%clk 0:03:00]} 4. Nf3 {[%clk 0:02:59]}  Nc6 {[%clk 0:02:58]} 5. Bb5 {[%clk 0:02:56]}  Bd7 {[%clk 0:02:59]} 6. O-O {[%clk 0:02:53]}  a6 {[%clk 0:02:59]} 7. b4 {[%clk 0:02:47]}  Qxb4 {[%clk 0:02:51]} 8. Rb1 {[%clk 0:02:47]}  Qd6 {[%clk 0:02:50]} 9. Ne4 {[%clk 0:02:34]}  Qg6 {[%clk 0:02:49]} 10. Bd3 {[%clk 0:02:26]}  f5 {[%clk 0:02:23]} 11. Nc5 {[%clk 0:02:22]}  e5 {[%clk 0:02:17]} 12. Nxd7 {[%clk 0:02:19]}  Kxd7 {[%clk 0:02:17]} 13. Nh4 {[%clk 0:02:15]}  Qf6 {[%clk 0:02:17]} 14. Nxf5 {[%clk 0:02:06]}  Rd8 {[%clk 0:01:34]} 15. Qg4 {[%clk 0:01:53]}  h5 {[%clk 0:01:30]} 16. Qh3 {[%clk 0:01:51]}  g5 {[%clk 0:01:14]} 17. Be4 {[%clk 0:01:50]}  g4 {[%clk 0:01:07]} 18. Qb3 {[%clk 0:01:47]}  Nge7 {[%clk 0:00:51]} 19. Ne3 {[%clk 0:01:37]}  b5 {[%clk 0:00:44]} 20. Bb2 {[%clk 0:01:36]}  Bh6 {[%clk 0:00:40]} 21. a4 {[%clk 0:01:24]}  b4 {[%clk 0:00:40]} 22. Qc4 {[%clk 0:01:18]}  a5 {[%clk 0:00:39]} 23. Rbd1 {[%clk 0:01:11]}  Qe6 {[%clk 0:00:24]} 24. Qb5 {[%clk 0:01:00]}  Rb8 {[%clk 0:00:23]} 25. Qd3+ {[%clk 0:00:59]}  Qd6 {[%clk 0:00:23]} 26. Qc4 {[%clk 0:00:50]}  Qe6 {[%clk 0:00:22]} 27. d4 {[%clk 0:00:46]}  Qxc4 {[%clk 0:00:22]} 28. dxe5+ {[%clk 0:00:37]}  Qd4 {[%clk 0:00:20]} 29. Bxd4 {[%clk 0:00:36]}  Nxd4 {[%clk 0:00:20]} 30. Rxd4+ {[%clk 0:00:36]}  Ke6 {[%clk 0:00:21]} 31. Nc4 {[%clk 0:00:34]}  Rhd8 {[%clk 0:00:19]} 32. Rxd8 {[%clk 0:00:31]}  Rxd8 {[%clk 0:00:19]} 33. Nxa5 {[%clk 0:00:32]}  Kxe5 {[%clk 0:00:18]} 34. Bd3 {[%clk 0:00:31]}  Bd2 {[%clk 0:00:18]} 35. Nc4+ {[%clk 0:00:30]}  Kd4 {[%clk 0:00:18]} 36. Nxd2 {[%clk 0:00:30]}  Kc3 {[%clk 0:00:19]} 37. Ne4+ {[%clk 0:00:30]}  Kb2 {[%clk 0:00:19]} 38. Nc5 {[%clk 0:00:28]}  Nd5 {[%clk 0:00:17]} 39. a5 {[%clk 0:00:26]}  Nf4 {[%clk 0:00:17]} 40. a6 {[%clk 0:00:25]}  Nxd3 {[%clk 0:00:15]} 41. Nxd3+ {[%clk 0:00:25]}  Kc3 {[%clk 0:00:14]} 42. a7 {[%clk 0:00:22]}  Ra8 {[%clk 0:00:14]} 43. Ra1 {[%clk 0:00:22]}  b3 {[%clk 0:00:14]} 44. cxb3 {[%clk 0:00:22]}  Kxd3 {[%clk 0:00:14]} 45. h3 {[%clk 0:00:20]}  gxh3 {[%clk 0:00:14]} 46. g3 {[%clk 0:00:20]}  Kd4 {[%clk 0:00:15]} 47. Kh2 {[%clk 0:00:20]}  Kc5 {[%clk 0:00:15]} 48. Kxh3 {[%clk 0:00:21]}  Kb6 {[%clk 0:00:16]} 49. Kh4 {[%clk 0:00:21]}  Kb7 {[%clk 0:00:17]} 50. f4 {[%clk 0:00:21]}  c5 {[%clk 0:00:16]} 51. f5 {[%clk 0:00:21]}  Kc7 {[%clk 0:00:16]} 52. f6 {[%clk 0:00:21]}  Kd7 {[%clk 0:00:16]} 53. Kxh5 {[%clk 0:00:21]}  Ke8 {[%clk 0:00:16]} 54. Kg6 {[%clk 0:00:21]}  Kf8 {[%clk 0:00:16]} 55. f7 {[%clk 0:00:22]}  c4 {[%clk 0:00:16]} 56. Rh1 {[%clk 0:00:17]}  Ke7 {[%clk 0:00:15]} 57. Re1+ {[%clk 0:00:15]}  Kf8 {[%clk 0:00:10]} 58. Re8+ {[%clk 0:00:15]} 1-0


[Site "https://www.chess.com"]

[Event "Titled Tuesday Blitz November 07 Late 2023"]
[White "Indjic, Aleksandar"]
[Black "Pinto, Daniel"]
[WhiteFideId "911925"]
[BlackFideId "3303144"]
[WhiteElo "2918"]
[BlackElo "2506"]
[Result "1-0"]
[Round "3"]
[TimeControl "180+1"]
[Date "2023.11.07"]
[WhiteClock "0:01:02"]
[BlackClock "0:00:00"]
[Board "54"]

1. e4 {[%clk 0:03:00]}  e5 {[%clk 0:02:59]} 2. Nf3 {[%clk 0:02:57]}  Nc6 {[%clk 0:03:00]} 3. Bc4 {[%clk 0:02:57]}  Nf6 {[%clk 0:02:59]} 4. d3 {[%clk 0:02:58]}  Bc5 {[%clk 0:02:58]} 5. Bg5 {[%clk 0:02:55]}  h6 {[%clk 0:02:56]} 6. Bh4 {[%clk 0:02:55]}  Be7 {[%clk 0:02:46]} 7. a4 {[%clk 0:02:43]}  d6 {[%clk 0:02:38]} 8. Nbd2 {[%clk 0:02:37]}  O-O {[%clk 0:02:24]} 9. c3 {[%clk 0:02:37]}  Kh8 {[%clk 0:02:19]} 10. Qe2 {[%clk 0:02:37]}  Nh5 {[%clk 0:01:35]} 11. Bg3 {[%clk 0:02:22]}  f5 {[%clk 0:01:35]} 12. h3 {[%clk 0:02:07]}  f4 {[%clk 0:01:10]} 13. Bh2 {[%clk 0:02:06]}  Qe8 {[%clk 0:01:10]} 14. b4 {[%clk 0:02:04]}  a6 {[%clk 0:01:09]} 15. a5 {[%clk 0:02:02]}  Nd8 {[%clk 0:01:08]} 16. d4 {[%clk 0:01:57]}  Bf6 {[%clk 0:01:05]} 17. d5 {[%clk 0:01:53]}  Bd7 {[%clk 0:00:57]} 18. Bb3 {[%clk 0:01:52]}  Rc8 {[%clk 0:00:54]} 19. Nc4 {[%clk 0:01:43]}  g5 {[%clk 0:00:48]} 20. Nfd2 {[%clk 0:01:42]}  Ng7 {[%clk 0:00:45]} 21. Bg1 {[%clk 0:01:37]}  Qh5 {[%clk 0:00:42]} 22. Qxh5 {[%clk 0:01:34]}  Nxh5 {[%clk 0:00:42]} 23. Bd1 {[%clk 0:01:34]}  Ng7 {[%clk 0:00:42]} 24. Bg4 {[%clk 0:01:34]}  Rf7 {[%clk 0:00:35]} 25. f3 {[%clk 0:01:33]}  h5 {[%clk 0:00:30]} 26. Bxd7 {[%clk 0:01:33]}  Rxd7 {[%clk 0:00:31]} 27. Bf2 {[%clk 0:01:32]}  Nf7 {[%clk 0:00:30]} 28. Ke2 {[%clk 0:01:31]}  Re7 {[%clk 0:00:25]} 29. Kd3 {[%clk 0:01:26]}  Nh6 {[%clk 0:00:19]} 30. Rab1 {[%clk 0:01:25]}  c6 {[%clk 0:00:12]} 31. Nxd6 {[%clk 0:01:19]}  Rd8 {[%clk 0:00:12]} 32. Bc5 {[%clk 0:01:16]}  Red7 {[%clk 0:00:12]} 33. N2c4 {[%clk 0:01:16]}  cxd5 {[%clk 0:00:10]} 34. exd5 {[%clk 0:01:15]}  Be7 {[%clk 0:00:10]} 35. Ne4 {[%clk 0:01:14]}  Rxd5+ {[%clk 0:00:10]} 36. Kc2 {[%clk 0:01:15]}  Ng8 {[%clk 0:00:02]} 37. Bxe7 {[%clk 0:01:14]}  Nxe7 {[%clk 0:00:03]} 38. Nxg5 {[%clk 0:01:13]}  Ngf5 {[%clk 0:00:03]} 39. Nf7+ {[%clk 0:01:13]}  Kg7 {[%clk 0:00:04]} 40. Nxd8 {[%clk 0:01:14]}  Rxd8 {[%clk 0:00:05]} 41. Rhe1 {[%clk 0:01:11]}  Rc8 {[%clk 0:00:05]} 42. Kb3 {[%clk 0:01:09]}  Nd5 {[%clk 0:00:03]} 43. Rxe5 {[%clk 0:01:07]}  Nfe3 {[%clk 0:00:04]} 44. Nxe3 {[%clk 0:01:04]}  Nxe3 {[%clk 0:00:00]} 45. Re1 {[%clk 0:01:02]} 1-0


[Site "https://www.chess.com"]

[Event "Titled Tuesday Blitz November 07 Late 2023"]
[White "Musovic, Armin"]
[Black "Szpar, Milosz"]
[WhiteFideId "939935"]
[BlackFideId "1184989"]
[WhiteElo "2495"]
[BlackElo "2802"]
[Result "0-1"]
[Round "3"]
[TimeControl "180+1"]
[Date "2023.11.07"]
[WhiteClock "0:00:40"]
[BlackClock "0:01:17"]
[Board "57"]

1. e4 {[%clk 0:02:53]}  e6 {[%clk 0:02:56]} 2. Qe2 {[%clk 0:02:52]}  c5 {[%clk 0:02:52]} 3. Nf3 {[%clk 0:02:49]}  Nc6 {[%clk 0:02:52]} 4. g3 {[%clk 0:02:45]}  g6 {[%clk 0:02:45]} 5. Bg2 {[%clk 0:02:44]}  Bg7 {[%clk 0:02:45]} 6. c3 {[%clk 0:02:44]}  e5 {[%clk 0:02:45]} 7. O-O {[%clk 0:02:41]}  Nge7 {[%clk 0:02:45]} 8. d3 {[%clk 0:02:41]}  O-O {[%clk 0:02:45]} 9. h4 {[%clk 0:02:40]}  d6 {[%clk 0:02:42]} 10. Nh2 {[%clk 0:02:39]}  f5 {[%clk 0:02:36]} 11. exf5 {[%clk 0:02:32]}  Bxf5 {[%clk 0:02:33]} 12. Nd2 {[%clk 0:02:29]}  Qd7 {[%clk 0:02:32]} 13. Ne4 {[%clk 0:02:25]}  h6 {[%clk 0:02:29]} 14. Be3 {[%clk 0:02:18]}  b6 {[%clk 0:02:26]} 15. Rad1 {[%clk 0:02:15]}  d5 {[%clk 0:02:23]} 16. g4 {[%clk 0:02:08]}  Be6 {[%clk 0:02:10]} 17. Ng3 {[%clk 0:02:08]}  Rf7 {[%clk 0:02:08]} 18. Rfe1 {[%clk 0:01:38]}  Raf8 {[%clk 0:01:55]} 19. d4 {[%clk 0:01:28]}  cxd4 {[%clk 0:01:44]} 20. cxd4 {[%clk 0:01:26]}  e4 {[%clk 0:01:44]} 21. a3 {[%clk 0:01:14]}  Nc8 {[%clk 0:01:44]} 22. b3 {[%clk 0:01:12]}  Nd6 {[%clk 0:01:43]} 23. Qa6 {[%clk 0:01:10]}  Bxg4 {[%clk 0:01:32]} 24. Rc1 {[%clk 0:01:07]}  Nxd4 {[%clk 0:01:27]} 25. Nxg4 {[%clk 0:00:51]}  Qxg4 {[%clk 0:01:26]} 26. Rcd1 {[%clk 0:00:52]}  Nf3+ {[%clk 0:01:22]} 27. Bxf3 {[%clk 0:00:50]}  Rxf3 {[%clk 0:01:21]} 28. Qe2 {[%clk 0:00:40]}  Nf5 {[%clk 0:01:17]} 0-1


[Site "https://www.chess.com"]

[Event "Titled Tuesday Blitz November 07 Late 2023"]
[White "ChessBrainiacOnTwitch"]
[Black "Novik, Maxim"]
[BlackFideId "4102924"]
[WhiteElo "2800"]
[BlackElo "2492"]
[Result "1/2-1/2"]
[Round "3"]
[TimeControl "180+1"]
[Date "2023.11.07"]
[WhiteClock "0:00:22"]
[BlackClock "0:00:17"]
[Board "58"]

1. e4 {[%clk 0:03:00]}  c6 {[%clk 0:02:59]} 2. d4 {[%clk 0:02:59]}  d5 {[%clk 0:02:58]} 3. e5 {[%clk 0:02:55]}  Bf5 {[%clk 0:02:58]} 4. h4 {[%clk 0:02:53]}  Qb6 {[%clk 0:02:57]} 5. Nc3 {[%clk 0:02:50]}  c5 {[%clk 0:02:56]} 6. Nxd5 {[%clk 0:02:43]}  Qd8 {[%clk 0:02:56]} 7. dxc5 {[%clk 0:02:41]}  e6 {[%clk 0:02:53]} 8. Ne3 {[%clk 0:02:36]}  Qxd1+ {[%clk 0:02:52]} 9. Kxd1 {[%clk 0:02:33]}  Bxc5 {[%clk 0:02:51]} 10. Nxf5 {[%clk 0:02:33]}  exf5 {[%clk 0:02:51]} 11. f4 {[%clk 0:02:27]}  Nc6 {[%clk 0:02:45]} 12. Bd3 {[%clk 0:02:27]}  O-O-O {[%clk 0:02:42]} 13. a3 {[%clk 0:02:24]}  Nh6 {[%clk 0:02:32]} 14. Bd2 {[%clk 0:02:21]}  g6 {[%clk 0:02:30]} 15. Nf3 {[%clk 0:02:07]}  Ng4 {[%clk 0:02:29]} 16. Ke2 {[%clk 0:02:07]}  Nf2 {[%clk 0:02:24]} 17. Rhf1 {[%clk 0:02:05]}  Nxd3 {[%clk 0:02:24]} 18. cxd3 {[%clk 0:02:06]}  Rd7 {[%clk 0:02:23]} 19. Rac1 {[%clk 0:02:00]}  Bb6 {[%clk 0:02:21]} 20. b4 {[%clk 0:01:49]}  Kb8 {[%clk 0:02:20]} 21. Be3 {[%clk 0:01:48]}  Bc7 {[%clk 0:01:59]} 22. d4 {[%clk 0:01:45]}  Ne7 {[%clk 0:01:52]} 23. Rfd1 {[%clk 0:01:44]}  Nd5 {[%clk 0:01:51]} 24. g3 {[%clk 0:01:44]}  Bb6 {[%clk 0:01:48]} 25. Rc4 {[%clk 0:01:33]}  Rhd8 {[%clk 0:01:47]} 26. Rdc1 {[%clk 0:01:33]}  a6 {[%clk 0:01:45]} 27. Bd2 {[%clk 0:01:33]}  Ba7 {[%clk 0:01:37]} 28. a4 {[%clk 0:01:32]}  Nc7 {[%clk 0:01:32]} 29. Be3 {[%clk 0:01:27]}  Ne6 {[%clk 0:01:30]} 30. Rd1 {[%clk 0:01:10]}  b5 {[%clk 0:01:22]} 31. axb5 {[%clk 0:01:11]}  axb5 {[%clk 0:01:22]} 32. Rc6 {[%clk 0:01:07]}  Kb7 {[%clk 0:01:21]} 33. Rdc1 {[%clk 0:00:53]}  Rd5 {[%clk 0:01:02]} 34. Rd6 {[%clk 0:00:37]}  R8xd6 {[%clk 0:00:58]} 35. exd6 {[%clk 0:00:38]}  Rxd6 {[%clk 0:00:58]} 36. Kd3 {[%clk 0:00:35]}  f6 {[%clk 0:00:57]} 37. h5 {[%clk 0:00:33]}  Nc7 {[%clk 0:00:55]} 38. hxg6 {[%clk 0:00:30]}  hxg6 {[%clk 0:00:55]} 39. Rh1 {[%clk 0:00:31]}  Nd5 {[%clk 0:00:54]} 40. Bd2 {[%clk 0:00:32]}  Rd7 {[%clk 0:00:52]} 41. Rh6 {[%clk 0:00:32]}  Ne7 {[%clk 0:00:51]} 42. Rh7 {[%clk 0:00:30]}  Kc6 {[%clk 0:00:49]} 43. Rg7 {[%clk 0:00:27]}  Bb6 {[%clk 0:00:47]} 44. Bc3 {[%clk 0:00:28]}  Kd5 {[%clk 0:00:40]} 45. Nh4 {[%clk 0:00:25]}  Ke6 {[%clk 0:00:31]} 46. Nxg6 {[%clk 0:00:20]}  Nxg6 {[%clk 0:00:19]} 47. Rxg6 {[%clk 0:00:21]}  Rf7 {[%clk 0:00:18]} 48. d5+ {[%clk 0:00:17]}  Kxd5 {[%clk 0:00:18]} 49. Bxf6 {[%clk 0:00:17]}  Ra7 {[%clk 0:00:15]} 50. Bc3 {[%clk 0:00:15]}  Bd8 {[%clk 0:00:14]} 51. Rg8 {[%clk 0:00:13]}  Be7 {[%clk 0:00:14]} 52. Rb8 {[%clk 0:00:12]}  Kc6 {[%clk 0:00:14]} 53. Rc8+ {[%clk 0:00:10]}  Rc7 {[%clk 0:00:13]} 54. Rg8 {[%clk 0:00:10]}  Rd7+ {[%clk 0:00:13]} 55. Kc2 {[%clk 0:00:09]}  Kd5 {[%clk 0:00:13]} 56. Be5 {[%clk 0:00:07]}  Bxb4 {[%clk 0:00:12]} 57. Rb8 {[%clk 0:00:07]}  Kc4 {[%clk 0:00:12]} 58. Rc8+ {[%clk 0:00:07]}  Bc5 {[%clk 0:00:12]} 59. Re8 {[%clk 0:00:03]}  b4 {[%clk 0:00:13]} 60. Rb8 {[%clk 0:00:03]}  Ra7 {[%clk 0:00:12]} 61. Kb1 {[%clk 0:00:03]}  b3 {[%clk 0:00:11]} 62. Rc8 {[%clk 0:00:04]}  Ra5 {[%clk 0:00:11]} 63. Bd6 {[%clk 0:00:04]}  Rb5 {[%clk 0:00:11]} 64. Kb2 {[%clk 0:00:03]}  Kd5 {[%clk 0:00:11]} 65. Bxc5 {[%clk 0:00:03]}  Rxc5 {[%clk 0:00:12]} 66. Rf8 {[%clk 0:00:01]}  Ke4 {[%clk 0:00:11]} 67. Kxb3 {[%clk 0:00:02]}  Kf3 {[%clk 0:00:11]} 68. Rg8 {[%clk 0:00:02]}  Rc1 {[%clk 0:00:10]} 69. Rg5 {[%clk 0:00:02]}  Ke4 {[%clk 0:00:10]} 70. Kb2 {[%clk 0:00:02]}  Rc5 {[%clk 0:00:10]} 71. Rg7 {[%clk 0:00:03]}  Rc6 {[%clk 0:00:10]} 72. Kb3 {[%clk 0:00:03]}  Rc5 {[%clk 0:00:10]} 73. Kb4 {[%clk 0:00:04]}  Rc1 {[%clk 0:00:10]} 74. Kb5 {[%clk 0:00:05]}  Kf3 {[%clk 0:00:10]} 75. Rg5 {[%clk 0:00:05]}  Ke4 {[%clk 0:00:11]} 76. Kb4 {[%clk 0:00:05]}  Rc8 {[%clk 0:00:11]} 77. Rg6 {[%clk 0:00:06]}  Rf8 {[%clk 0:00:11]} 78. Kc5 {[%clk 0:00:06]}  Rd8 {[%clk 0:00:11]} 79. Kc6 {[%clk 0:00:06]}  Rd3 {[%clk 0:00:11]} 80. Rg5 {[%clk 0:00:07]}  Rd4 {[%clk 0:00:11]} 81. Kc5 {[%clk 0:00:07]}  Rd5+ {[%clk 0:00:12]} 82. Kc4 {[%clk 0:00:08]}  Rd4+ {[%clk 0:00:12]} 83. Kc3 {[%clk 0:00:09]}  Rd3+ {[%clk 0:00:13]} 84. Kc2 {[%clk 0:00:08]}  Rd5 {[%clk 0:00:12]} 85. Rg7 {[%clk 0:00:09]}  Kf3 {[%clk 0:00:12]} 86. Kc3 {[%clk 0:00:09]}  Ke4 {[%clk 0:00:12]} 87. Kc4 {[%clk 0:00:09]}  Rd1 {[%clk 0:00:12]} 88. Kc5 {[%clk 0:00:09]}  Rd5+ {[%clk 0:00:11]} 89. Kc6 {[%clk 0:00:10]}  Rd8 {[%clk 0:00:11]} 90. Rg5 {[%clk 0:00:10]}  Rd3 {[%clk 0:00:11]} 91. Kc7 {[%clk 0:00:10]}  Rd2 {[%clk 0:00:11]} 92. Rg7 {[%clk 0:00:10]}  Rd1 {[%clk 0:00:12]} 93. Kc6 {[%clk 0:00:08]}  Rd2 {[%clk 0:00:12]} 94. Rg5 {[%clk 0:00:09]}  Rd3 {[%clk 0:00:12]} 95. Kc5 {[%clk 0:00:09]}  Rd2 {[%clk 0:00:12]} 96. Rg8 {[%clk 0:00:10]}  Rd1 {[%clk 0:00:12]} 97. Kc4 {[%clk 0:00:10]}  Rc1+ {[%clk 0:00:13]} 98. Kb3 {[%clk 0:00:10]}  Rc6 {[%clk 0:00:13]} 99. Rg5 {[%clk 0:00:09]}  Rc5 {[%clk 0:00:12]} 100. Kb4 {[%clk 0:00:10]}  Rc8 {[%clk 0:00:12]} 101. Rg7 {[%clk 0:00:10]}  Kf3 {[%clk 0:00:12]} 102. Kb5 {[%clk 0:00:11]}  Rc2 {[%clk 0:00:11]} 103. Kb6 {[%clk 0:00:11]}  Rg2 {[%clk 0:00:11]} 104. Rg5 {[%clk 0:00:09]}  Rxg3 {[%clk 0:00:11]} 105. Rxf5 {[%clk 0:00:09]}  Kg4 {[%clk 0:00:11]} 106. Rf8 {[%clk 0:00:08]}  Rf3 {[%clk 0:00:10]} 107. Kc5 {[%clk 0:00:07]}  Rxf4 {[%clk 0:00:11]} 108. Rg8+ {[%clk 0:00:08]}  Kf3 {[%clk 0:00:11]} 109. Kd5 {[%clk 0:00:09]}  Rf5+ {[%clk 0:00:11]} 110. Kd4 {[%clk 0:00:09]}  Rf4+ {[%clk 0:00:11]} 111. Kd3 {[%clk 0:00:10]}  Rg4 {[%clk 0:00:11]} 112. Rf8+ {[%clk 0:00:11]}  Rf4 {[%clk 0:00:11]} 113. Rh8 {[%clk 0:00:12]}  Rg4 {[%clk 0:00:12]} 114. Rh7 {[%clk 0:00:11]}  Rf4 {[%clk 0:00:12]} 115. Rh3+ {[%clk 0:00:12]}  Kg4 {[%clk 0:00:12]} 116. Rh7 {[%clk 0:00:12]}  Rf3+ {[%clk 0:00:12]} 117. Ke2 {[%clk 0:00:12]}  Rf5 {[%clk 0:00:12]} 118. Rg7+ {[%clk 0:00:12]}  Rg5 {[%clk 0:00:13]} 119. Re7 {[%clk 0:00:13]}  Kf4 {[%clk 0:00:12]} 120. Rf7+ {[%clk 0:00:14]}  Rf5 {[%clk 0:00:13]} 121. Rd7 {[%clk 0:00:14]}  Re5+ {[%clk 0:00:13]} 122. Kf2 {[%clk 0:00:15]}  Re4 {[%clk 0:00:12]} 123. Rb7 {[%clk 0:00:15]}  Rd4 {[%clk 0:00:12]} 124. Rb2 {[%clk 0:00:15]}  Ke4 {[%clk 0:00:12]} 125. Rb8 {[%clk 0:00:15]}  Rd5 {[%clk 0:00:13]} 126. Ke2 {[%clk 0:00:15]}  Re5 {[%clk 0:00:13]} 127. Rb4+ {[%clk 0:00:15]}  Kf5+ {[%clk 0:00:13]} 128. Kd3 {[%clk 0:00:16]}  Rd5+ {[%clk 0:00:13]} 129. Ke3 {[%clk 0:00:17]}  Re5+ {[%clk 0:00:13]} 130. Kf3 {[%clk 0:00:17]}  Rd5 {[%clk 0:00:14]} 131. Rf4+ {[%clk 0:00:18]}  Ke5 {[%clk 0:00:14]} 132. Rf8 {[%clk 0:00:19]}  Rd3+ {[%clk 0:00:14]} 133. Kg4 {[%clk 0:00:19]}  Rd4+ {[%clk 0:00:14]} 134. Kg5 {[%clk 0:00:19]}  Ke4 {[%clk 0:00:14]} 135. Re8+ {[%clk 0:00:20]}  Kd3 {[%clk 0:00:15]} 136. Kf5 {[%clk 0:00:21]}  Rd5+ {[%clk 0:00:15]} 137. Kf4 {[%clk 0:00:21]}  Rd4+ {[%clk 0:00:15]} 138. Kf3 {[%clk 0:00:22]}  Kc4 {[%clk 0:00:16]} 139. Ke3 {[%clk 0:00:22]}  Rd6 {[%clk 0:00:16]} 140. Rc8+ {[%clk 0:00:23]}  Kd5 {[%clk 0:00:16]} 141. Re8 {[%clk 0:00:23]}  Re6+ {[%clk 0:00:16]} 142. Rxe6 {[%clk 0:00:22]}  Kxe6 {[%clk 0:00:17]} 1/2-1/2


[Site "https://www.chess.com"]

[Event "Titled Tuesday Blitz November 07 Late 2023"]
[White "Czerw, Dawid"]
[Black "Sokolovsky, Yahli"]
[WhiteFideId "1145746"]
[BlackFideId "2820242"]
[WhiteElo "2491"]
[BlackElo "2773"]
[Result "0-1"]
[Round "3"]
[TimeControl "180+1"]
[Date "2023.11.07"]
[WhiteClock "0:00:00"]
[BlackClock "0:00:19"]
[Board "59"]

1. e4 {[%clk 0:03:00]}  d6 {[%clk 0:03:00]} 2. Nc3 {[%clk 0:03:00]}  g6 {[%clk 0:03:00]} 3. d4 {[%clk 0:03:00]}  Bg7 {[%clk 0:03:01]} 4. f4 {[%clk 0:03:00]}  Nf6 {[%clk 0:03:00]} 5. Nf3 {[%clk 0:03:00]}  O-O {[%clk 0:03:01]} 6. Bd3 {[%clk 0:03:00]}  Nc6 {[%clk 0:03:01]} 7. O-O {[%clk 0:02:57]}  Bg4 {[%clk 0:03:01]} 8. Be3 {[%clk 0:02:52]}  e5 {[%clk 0:03:01]} 9. d5 {[%clk 0:02:45]}  exf4 {[%clk 0:02:56]} 10. Bxf4 {[%clk 0:02:37]}  Nd4 {[%clk 0:02:57]} 11. Ne2 {[%clk 0:02:25]}  Nxe2+ {[%clk 0:02:48]} 12. Qxe2 {[%clk 0:02:20]}  Re8 {[%clk 0:02:49]} 13. c4 {[%clk 0:01:56]}  Nxe4 {[%clk 0:02:41]} 14. Bxe4 {[%clk 0:01:56]}  f5 {[%clk 0:02:41]} 15. h3 {[%clk 0:01:45]}  Rxe4 {[%clk 0:02:41]} 16. Qd2 {[%clk 0:01:44]}  Bxf3 {[%clk 0:02:40]} 17. gxf3 {[%clk 0:01:41]}  Rxc4 {[%clk 0:02:34]} 18. Rae1 {[%clk 0:01:36]}  Qh4 {[%clk 0:02:24]} 19. Bh2 {[%clk 0:01:15]}  Rf8 {[%clk 0:02:12]} 20. Kg2 {[%clk 0:01:06]}  Rd4 {[%clk 0:02:06]} 21. Qc2 {[%clk 0:01:02]}  Rxd5 {[%clk 0:02:06]} 22. Re2 {[%clk 0:00:44]}  c6 {[%clk 0:02:00]} 23. Rfe1 {[%clk 0:00:40]}  Qb4 {[%clk 0:01:55]} 24. a3 {[%clk 0:00:33]}  Qa5 {[%clk 0:01:36]} 25. Qb3 {[%clk 0:00:24]}  Rf7 {[%clk 0:01:34]} 26. Re8+ {[%clk 0:00:21]}  Bf8 {[%clk 0:01:34]} 27. Bf4 {[%clk 0:00:14]}  Kg7 {[%clk 0:01:17]} 28. Qe3 {[%clk 0:00:07]}  Kg8 {[%clk 0:00:27]} 29. Bh6 {[%clk 0:00:05]}  Re5 {[%clk 0:00:26]} 30. Qg5 {[%clk 0:00:00]}  Rxe1 {[%clk 0:00:19]} 0-1


[Site "https://www.chess.com"]